Cogmind - Beta 17 @@@ ROGUE MODE // 2026.08.13 @ 02:33:01 Player: biznut Result: Destroyed by S-10 Pest with Light Assault Rifle Performance ------------- Evolutions (0) 0 Regions Visited (1) 200 Robots Destroyed (10) 50 Value Destroyed (199) 199 Prototype IDs (4) 80 Alien Tech Used (0) 0 Bonus (0) 0 TOTAL SCORE: 529 Bonus ------- None Cogmind --------- Core Integrity 0/250 Matter 300/300 Energy 242/250 System Corruption 0% Temperature Cool (21) Movement Core (200) Ox3 Location -10/Materials Parts ------- > --- POWER (1) -------- Ion Engine > --- PROPULSION (2) --- (None) > --- UTILITY (2) ------ Small Storage Unit > --- WEAPON (2) ------- Small Laser > --- INVENTORY (8) ---- Light Ion Engine Light Treads Hover Unit Heat Sink Signal Interpreter Power Shielding Light Armor Plating Hacking Suite Peak State ------------ > --- POWER ------------ Ion Engine > --- PROPULSION ------- Aluminum Leg Aluminum Leg > --- UTILITY ---------- Small Storage Unit Structural Scanner > --- WEAPON ----------- Medium Laser Small Laser > --- INVENTORY -------- Light Ion Engine Light Treads Light Treads Hover Unit Heat Sink Signal Interpreter Power Shielding Hacking Suite [Rating: 8] Favorites ----------- Power Light Ion Engine Engine Light Ion Engine Propulsion Aluminum Leg Leg Aluminum Leg Wheel Compact Wheel Utility Small Storage Unit Device Structural Scanner Storage Small Storage Unit Weapon Small Laser Energy Gun Small Laser Ballistic Gun Light Assault Rifle Build | -11 -10 ------- Run | Yrd Mat Slots Evolved . | . . Power . | . . Propulsion . | . . Utility . | . . Weapon . | . . Parts Attached 14 | 8 6 Power 4 | 1 3 Engine 4 | 1 3 Core . | . . Reactor . | . . Propulsion 4 | 3 1 Treads . | . . Leg 3 | 2 1 Wheel 1 | 1 . Hover . | . . Flight . | . . Utility 2 | 1 1 Device 1 | . 1 Storage 1 | 1 . Processor . | . . Hackware . | . . Protection . | . . Artifact . | . . Weapon 4 | 3 1 Energy Gun 3 | 2 1 Energy Cannon . | . . Ballistic Gun 1 | 1 . Ballistic Cannon . | . . Launcher . | . . Special Weapon . | . . Impact Weapon . | . . Slashing Weapon . | . . Piercing Weapon . | . . Special Melee Weapon . | . . Unidentified Prototypes . | . . Parts Lost 6 | . 6 Power 1 | . 1 Propulsion 3 | . 3 Utility 1 | . 1 Weapon 1 | . 1 Highest Loss Streak 4 | . 4 To Critical Strikes . | . . Average Backups 5 | . 6 Power . | . 1 Propulsion 2 | . 2 Utility 2 | . 3 Weapon . | . . Tool/Special . | . . Unused Backups 9 | . 9 Power 1 | . 1 Propulsion 3 | . 3 Utility 5 | . 5 Weapon . | . . Tool/Special . | . . Average Slot Usage (%) 94 | . 94 Engine 12 | . 12 Leg 25 | . 25 Device 12 | . 12 Storage 14 | . 14 Energy Gun 21 | . 21 Ballistic Gun 5 | . 5 Peak Build Rating 8 | 6 8 Average Rating 6 | 4 7 On Entrance 3 | . 6 Avg Prop Armor Cover (%) . | . . Naked Turns . | . . Heaviest Build 14 | 11 14 Greatest Support 20 | 20 20 Greatest Overweight (x) 2 | 2 1 Average Overweight (x) . | . . Largest Inventory Capacity 8 | 8 8 Average Capacity 7 | 7 8 Most Carried 8 | 3 8 Average Carried 5 | . 6 Final Capacity 8 | 8 8 Final Carried 8 | 3 8 Class Distribution -------------------- 100% | Mutant Dominant Class ---------------- Mutant | -10/Materials Resources | -11 -10 ----------- Run | Yrd Mat Matter Collected 354 | 226 128 Remotely . | . . Salvage Created 260 | . 260 Parts 17 | . 17 Haulers Intercepted . | . . Recyclers Shooed 1 | . 1 Parts Field Recycled . | . . Retrieved Matter . | . . Parts Self-Destructed . | . . Prevented . | . . Parts Restored . | . . Kills | -11 -10 ------- Run | Yrd Mat Combat Hostiles Destroyed 7 | . 7 Guns 7 | . 7 Classes Destroyed 5 | . 5 Worker 1 | . 1 Operator 1 | . 1 Watcher 1 | . 1 Swarmer 3 | . 3 Grunt 4 | . 4 Best Kill Streak 4 | . 4 Combat Bots Only 4 | . 4 Max Kills in Single Turn 1 | . 1 Gunslinging . | . . Exploded . | . . Melee . | . . Uniques/NPCs Destroyed . | . . Combat | -11 -10 -------- Run | Yrd Mat Hostile Shots Fired 148 | . 148 Missed 50 | . 50 Hits 98 | . 98 Projectile 98 | . 98 Damage Taken 879 | . 879 Core 255 | . 255 Absorbed by Shields . | . . Core Remaining (%) 100 | 100 . Volleys Fired 40 | . 40 Largest 2 | . 2 Hottest 90 | . 90 Shots Fired 70 | . 70 Gun 70 | . 70 Cannon . | . . Launcher . | . . Special . | . . Kinetic 17 | . 17 Thermal 53 | . 53 Explosive . | . . Electromagnetic . | . . Robot Hit Streak 8 | . 8 Robot Miss Streak 6 | . 6 Penetration Max . | . . Secondary Targets 1 | . 1 Max Gunslinging Chain 1 | . 1 Shots Hit Robots 38 | . 38 Core Hits 16 | . 16 Critical Kills . | . . Critical Parts Destroyed . | . . Critical Strikes 2 | . 2 Burn 2 | . 2 Melee Attacks . | . . Impact . | . . Slashing . | . . Piercing . | . . Sneak Attacks . | . . Combat Hostiles . | . . Follow-up Attacks . | . . Damage Inflicted 419 | . 419 Guns 411 | . 411 Cannons . | . . Explosions . | . . Melee . | . . Ramming 8 | . 8 Kinetic 71 | . 71 Thermal 340 | . 340 Explosive . | . . Electromagnetic . | . . Impact . | . . Slashing . | . . Piercing . | . . Highest Corruption . | . . Average Corruption . | . . Corruption Purged . | . . Corruption Blocked . | . . Overload Shots . | . . Overflow Damage . | . . Projectiles . | . . Explosions . | . . Melee . | . . Knockbacks . | . . Impact . | . . Kinetic . | . . Secondary . | . . Self-Inflicted Damage . | . . Shots . | . . Rammed . | . . Targets Rammed 2 | 1 1 Kicked 2 | 1 1 Crushed . | . . Highest Temperature 240 | . 240 Average Temperature 53 | . 53 Received Heat Transfer 216 | . 216 Siege Activations . | . . Martial Activations . | . . Shielding Activations . | . . Robots Disrupted . | . . Combat Hostiles . | . . Robots Corrupted . | . . Combat Hostiles . | . . Parts Fried . | . . Impact Corruptions . | . . Robots Melted . | . . Combat Hostiles . | . . Parts Melted . | . . Heat Transferred 970 | . 970 Parts Sabotaged . | . . Parts Stolen . | . . Parts Stripped . | . . Power Chain Reactions . | . . Alert | -11 -10 ------- Run | Yrd Mat Maximum Alert Level . | . . Low Security (%) 100 | 100 100 Level 1 . | . . Level 2 . | . . Level 3 . | . . Level 4 . | . . Level 5 . | . . High Security . | . . Max Security . | . . Peak Influence 90 | . 90 Initial . | . . Average 20 | . 24 Influence Increases 306 | . 306 Destroy 0b10 Robot/C 140 | . 140 Destroy 0b10 Robot/NC 15 | . 15 Destroy Leader 32 | . 32 Successful Hack 14 | . 14 Lose Combat Pursuer 105 | . 105 Influence Decreases 229 | . 229 Time Decay 194 | . 194 Lost Part 35 | . 35 Squads Dispatched 2 | . 2 Investigation 2 | . 2 Extermination . | . . Reinforcement . | . . Assault . | . . Garrison . | . . Intercept . | . . Searches Triggered . | . . Construction Impeded . | . . Haulers Reinforced . | . . Active Scanning Responses . | . . Cargo Convoy Interrupts . | . . Stealth | -11 -10 --------- Run | Yrd Mat Distress Signals 1 | . 1 Communications Jammed . | . . Distress Signals . | . . Times Spotted 18 | . 18 Peak Tracking Total 5 | . 5 Tactical Retreats 3 | . 3 Traps | -11 -10 ------- Run | Yrd Mat Traps Triggered . | . . Indirectly . | . . Trap Hack Attempts . | . . Triggered . | . . Disarmed . | . . Reprogrammed . | . . Reused . | . . Traps Extracted . | . . Installed . | . . Triggered . | . . Machines | -11 -10 ---------- Run | Yrd Mat Machines Disabled . | . . Max in Single Turn . | . . Machines Repaired . | . . Machines Dismantled . | . . Machines Sabotaged . | . . Overloaded Fab Kills . | . . Hacking | -11 -10 --------- Run | Yrd Mat Machines Accessed 3 | . 3 Terminals 2 | . 2 Fabricators . | . . Repair Stations . | . . Recycling Units 1 | . 1 Scanalyzers . | . . Garrison Access . | . . Total Hacks 10 | . 10 Successful 7 | . 7 Failed 3 | . 3 Catastrophic . | . . Database Lockouts . | . . Manual . | . . Terminals 6 | . 6 Fabricators . | . . Repair Stations . | . . Recycling Units 4 | . 4 Scanalyzers . | . . Garrison Access . | . . Terminal Hacks 5 | . 5 Record 1 | . 1 Prototype ID Bank 2 | . 2 Locate Traps 1 | . 1 Zone Layout 1 | . 1 Fabricator Hacks . | . . Repair Station Hacks . | . . Recycling Unit Hacks 2 | . 2 Process 1 | . 1 Report Inventory 1 | . 1 Scanalyzer . | . . Garrison Access Hacks . | . . Unauthorized Hacks . | . . Terminals . | . . Fabricators . | . . Repair Stations . | . . Recycling Units . | . . Scanalyzers . | . . Garrison Access . | . . Data Cores Recovered 1 | . 1 Used . | . . Hacking Detections 2 | . 2 Full Trace Events 2 | . 2 Feedback Events . | . . Feedback Blocked . | . . Robot Schematics Acquired . | . . Robots Built . | . . Authchips . | . . Time . | . . Total Robot Build Rating . | . . Part Schematics Acquired . | . . Parts Built . | . . Authchips . | . . Time . | . . Total Part Build Rating . | . . Part Studies Acquired . | . . Parts Repaired . | . . Time . | . . Parts Recycled . | . . Recycled Matter 110 | . 110 Retrieved Matter . | . . Retrieved Components . | . . Parts Scanalyzed . | . . Part Schematics Acquired . | . . Parts Damaged . | . . Bothacking | -11 -10 ------------ Run | Yrd Mat Used RIF Installer . | . . Robots Hacked . | . . Non-combat . | . . Combat . | . . Robot Hacks Applied . | . . Relay Couplers Released . | . . Fabnet Peak Effective % . | . . Robots Rewired . | . . Allies Hacked . | . . Hacks Repelled . | . . Allies | -11 -10 -------- Run | Yrd Mat Total Allies . | . . Largest Group . | . . Highest-Rated Group . | . . Highest-Rated Ally . | . . Total Orders . | . . Ally Attacks . | . . Total Damage . | . . Kills . | . . Allies Corrupted . | . . Allies Melted . | . . Intel | -11 -10 ------- Run | Yrd Mat Active Infowar (turns) 530 | . 530 Structural 530 | . 530 Robot Analysis Total . | . . Derelict Logs Recovered . | . . Drone Launches . | . . Drone Recoveries . | . . Exploration | -11 -10 ------------- Run | Yrd Mat Turns Passed 687 | 109 578 Spaces Moved 438 | 80 358 Core 16 | 16 . Treads . | . . Legs 417 | 59 358 Wheels 5 | 5 . Hover . | . . Flight . | . . Fastest Speed 50 | 50 120 Average Speed 122 | 109 125 Slowest Speed 190 | 150 190 Overloaded Moves . | . . Propulsion Burnouts . | . . Robots Hopped . | . . Potential Cave-ins . | . . Cave-ins Triggered . | . . Exploration Rate (%) 23 | 6 40 Regions Visited 1 Branch Regions . Pre-discovered Areas . | . . Known Exits Taken . | . . Unknown Exits Taken 1 | 1 . Scrap Searched . | . . Spaces Dug . | . . Terrain Destroyed . | . . Melee . | . . Projectile . | . . AOE . | . . Terrain Rammed . | . . Walls Destroyed . | . . Machines Disabled . | . . Actions | -11 -10 --------- Run | Yrd Mat Total 521 | 100 421 Wait 6 | 1 5 Move 437 | 79 358 Hop . | . . Pick Up 10 | 4 6 Fast Attach 12 | 8 4 Attach 1 | 1 . Detach 4 | 3 1 Swap 2 | . 2 Drop 7 | 3 4 Fire 40 | . 40 Melee . | . . Ram . | . . Kick 2 | 1 1 Crush . | . . Escape Stasis . | . . Rewire . | . . Trap . | . . Miscellaneous . | . . Route ------- -11/Scrapyard -10/Materials History --------- Turn | Location | Event 30 | -11/Scrapyard | Discovered new exit (range 16) 110 | -11/Scrapyard | Entered Materials 316 | -10/Materials | Build established: Mutant 520 | -10/Materials | Core integrity fell below 50% 679 | -10/Materials | Core integrity fell below 20% 688 | -10/Materials | Destroyed by S-10 Pest with Light Assault Rifle Last Messages --------------- 00516_ G-34 Mercenary destroyed. 00516_ Switching to secondary target: G-34 Mercenary. 00531_ Aluminum Leg destroyed. 00532_ G-34 Mercenary destroyed. 00539_ Acquired 15 matter. 00576_ Acquired Aluminum Leg. 00577_ Acquired 10 matter. 00580_ Dropped Lgt. Ion Engine. 00610_ W-16 Scout destroyed. 00621_ Acquired 10 matter. 00627_ K-01 Serf cleans the Fusion Modulator. 00629_ K-01 Serf collects debris. 00646_ Aluminum Leg destroyed. 00665_ K-01 Serf cleans the Matter Filter. 00665_ Med. Laser destroyed. 00667_ Structural Scanner destroyed. 00670_ S-10 Pest destroyed. 00670_ Aluminum Leg destroyed. 00674_ K-01 Serf collects debris. Map ----- +----------------------------------------------------+ | | | | | | | | | | | | | | | | | ???????????????????????????????????????????????? | | ???????????????????????????????????????????????? | | ?????????????????????????????########??????????? | | ?????????????????????????????########??????????? | | ?????????????????????????????## ##??????????? | | ?????????????????????????????## ############# | | ?????????????????????????????## ############# | | ?????????????????????????????## + | | ???????????????????????? ###### ############ T | | ???????????????????????? ###### ############ | | ?????????????????? ## #### ######????## | | ?????????????????? ## #### ######## ???? # """ | | ?????????????????? + #[[ # ???? # """ | | ?????????????????? ####### #[ ""# ???? # """ | | ??????????????? ####### # Y"# ???? # | | ???????????###?########### + ""# ???? #+##+ | | ???????????## ?"""""" #### # # ???? # | | ???????????## """"""" s@ s + # ???? + | | ???????????## """"""" #### ######## ???? # | | ##########?## """"""" #### ## # ???? ##### | | ##########?## """"""" #### # ???? ### | | # ##?## #### # ??????## " | | # ##?## #### # ??????##[" | | # """ ##### ######### # ??????## " | | #/ """ #########/############## ###??????## " | | # """ # #### + = ## ###??????## " | | # + #### # ## ##???????## | | # """ # #### # """ """ ## ############# | | # """ # #### # """ """ ## ############# | | # """ # #### # """ """ ## ### | | # *% # #### # / * | | # %[ # #### #####+#######/ % ### | | ######### ########### #######? | | ######### # ?? #### ######## | | ???????## %= # ?????????? # ???"" | | ???????###+######+##### + ?????????? # ???"" | | ???????### # # ??????????? # ???"" | | ????????## ????"" ?? # # ??????????? # ???"" | | ????????## "??"""""? # # ???????????? # ???"" | | ????????## ??" """? # ##???????????? # ??? | | ????????## # ##?????????????????? | | ????????############### ##?????????????????? | +----------------------------------------------------+ Best States ------------- Heat Dissipation 25 Energy Generation 10 Energy Capacity 250 Matter Stores 300 Matter Capacity 300 Sight Range 16 Terrain Scan Density 10 Evasion (%) 55 Item Schematics ----------------- None Robot Schematics ------------------ None Fabricated ------------ Nothing Repaired ---------- Nothing Studied --------- None Alien Tech Used ----------------- None Achievements -------------- None Challenges ------------ None Game ------ Seed ZipDisintegrationHoverbase Manual? 0 Play Time 00:11:53 Cumulative 18.9 hours Start 2026.08.13 @ 02:18:22 End 2026.08.13 @ 02:33:01 Sessions 1 Manual Loads 0 Difficulty Rogue Special Mode None Game No. 23 Rogue 23 Adventurer 0 Explorer 0 Win Type - Total 0 Types 0/0/0/0/0/0/0/0/0/0 Lore% 11 Gallery% 14 Achievement% 10 Wizard Run 0 Options --------- Layout 1 ASCII 0 Keyboard 1 Movement Numpad Keybinds 1 Fullscreen 2 Font 32/SmallcapsGlow Map View 50x40 Zoom Use 58% Tactical HUD 1 Map Filters NONE Filters NONE Steam 1 RUN: 6f0d2980-8f27-4827-a975-96d0a65d354c